bitfinex/quotes_ETHUSD_20241001
["timestamp","ask_amount","ask_price","bid_price","bid_amount"]
[1727816581114,26.11913014,2455.9,2455.3,4.07271]
[1727816581304,4.07227,2455.7,2455.0,0.05]
[1727816581506,3.0,2455.4,2455.0,0.05]
[1727816581705,22.82620922,2455.4,2455.0,0.05]
[1727816582010,4.07315,2455.1,2455.0,0.05]
[1727816582204,5.66675,2455.1,2455.0,0.05]
[1727816582429,1.5936,2455.1,2455.0,0.05]
[1727816583027,4.07207,2455.8,2455.1,1.5115]
[1727816583028,1.5248,2455.7,2455.1,1.5115]
[1727816583339,19.52620922,2455.8,2455.6,4.07218]
[1727816583541,19.52620922,2455.9,2455.6,4.07218]
[1727816583907,19.52620922,2455.9,2455.2,4.91236031]
[1727816583908,19.52620922,2455.9,2455.3,4.07267]
[1727816584231,19.52620922,2455.9,2455.5,4.07234]
[1727816584437,19.52620922,2455.9,2455.3,0.83941031]
[1727816584752,25.70325014,2455.9,2455.4,4.07255]
[1727816584958,19.52620922,2455.9,2455.5,4.07246]
[1727816585409,23.59803922,2455.9,2455.2,4.91229031]
[1727816585609,5.65137,2456.3,2455.4,1.6196]
[1727816585854,5.65134,2456.3,2455.6,4.07225]
[1727816586163,4.07143,2456.2,2455.7,4.07208]
[1727816586361,1.5801,2456.3,2455.8,4.07197]
[1727816586674,4.06991,2457.1,2456.4,8.1419]
[1727816586675,1.5946,2456.6,2456.4,8.1419]
[1727816586811,23.60035,2456.8,2456.3,4.07114]
[1727816587010,19.53,2456.8,2456.4,4.07099]
[1727816587211,1.5946,2457.3,2456.4,0.81422]
[1727816587524,7.38,2458.2,2456.4,0.81422]
[1727816587525,4.0686,2457.9,2457.3,4.06949]
[1727816587855,1.5946,2458.2,2457.0,4.06996]
[1727816588148,0.566251,2458.1,2457.1,2.06163703]
[1727816588358,5.66276,2458.2,2457.6,4.06891]
[1727816588657,5.66276,2458.2,2457.1,2.06163703]
[1727816588658,1.5946,2458.2,2457.1,2.06163703]
[1727816588817,1.6581,2458.6,2458.3,8.13557]
[1727816589153,5.72485,2459.0,2458.4,4.06758]
[1727816589326,5.72485,2459.0,2458.2,4.06794]
[1727816589327,4.06712,2458.8,2458.2,4.06794]
[1727816589522,1.6581,2459.0,2458.0,1.5707]
[1727816589724,1.6581,2459.0,2458.5,4.06741]
[1727816589942,1.6581,2459.0,2458.1,4.06803]
[1727816590323,4.06731,2458.7,2458.1,4.06803]
[1727816590631,5.72491,2459.0,2458.3,4.06774]
[1727816590838,4.06689,2458.9,2458.3,4.06774]
[1727816591037,5.72488,2459.0,2458.0,1.5707]
[1727816591234,5.72488,2459.0,2458.1,0.53825218]
[1727816591235,1.6581,2459.0,2458.1,0.53825218]
[1727816591449,1.5143,2459.3,2458.7,4.06708]
[1727816591653,1.5143,2459.3,2458.1,0.53825218]
[1727816591654,1.5143,2459.3,2458.5,4.06748]
[1727816591953,4.06671,2459.0,2458.5,4.06747]
[1727816592274,4.06671,2459.0,2458.0,1.5707]
[1727816592275,6.99962565,2459.3,2458.0,1.5707]
[1727816592472,6.99962565,2459.3,2457.7,12.77099]
[1727816592473,4.06781,2458.4,2457.7,12.77099]
[1727816592786,4.06781,2458.4,2457.7,8.70223]
[1727816592928,4.06781,2458.4,2457.7,9.77097]
[1727816593127,4.06762,2458.5,2457.7,5.70223]
[1727816593324,4.06762,2458.5,2457.6,4.06899]
[1727816593325,0.969939,2458.5,2457.6,4.06899]
[1727816593561,5.037519,2458.5,2457.9,4.0684]
[1727816593860,1.5645,2458.6,2457.9,9.64376]
[1727816594080,4.06752,2458.5,2457.9,5.57537]
[1727816594425,2.516202,2458.5,2458.1,4.06815]
[1727816594768,1.5645,2458.6,2458.1,4.06808]
[1727816594928,4.06752,2458.5,2457.9,5.57539]
[1727816595127,4.06752,2458.5,2457.9,4.06839]
[1727816595734,8.13516,2458.5,2457.9,4.06839]
[1727816595942,21.0609,2458.7,2457.6,1.5043]
[1727816596275,4.06745,2458.6,2458.0,4.06818]
[1727816596442,21.0609,2458.7,2457.9,4.06838]
[1727816596647,4.06761,2458.5,2457.7,4.06873]
[1727816596847,4.06761,2458.5,2457.9,4.06841]
[1727816597368,4.06769,2458.4,2457.9,4.06841]
[1727816597578,4.06761,2458.5,2457.9,4.06841]
[1727816597729,4.06761,2458.5,2457.7,4.06867]
[1727816597950,4.06813,2458.2,2457.6,5.57322]
[1727816598204,4.06788,2458.3,2457.8,4.06864]
[1727816598967,4.06788,2458.3,2457.7,8.13754]
[1727816599160,4.06788,2458.3,2457.7,4.06873]
[1727816599952,4.06768,2458.4,2457.9,4.0685]
[1727816600285,4.06785,2458.3,2457.8,4.06864]
[1727816600595,23.59759,2458.5,2457.9,4.0684]
[1727816600771,4.06778,2458.4,2457.9,4.0684]
[1727816600971,23.59759,2458.5,2457.9,4.0684]
[1727816601152,27.66522,2458.5,2457.9,4.0684]
[1727816601353,4.06774,2458.4,2457.7,8.13745]
[1727816601568,4.06774,2458.4,2457.8,4.06866]
[1727816601780,4.06769,2458.4,2457.9,4.06838]
[1727816601997,26.517202,2458.5,2457.9,8.1368]
[1727816602202,26.517202,2458.5,2458.0,4.06834]
[1727816602671,26.517202,2458.5,2457.9,4.06838]
[1727816602997,5.72757,2458.1,2457.5,4.06906]
[1727816603207,5.72757,2458.1,2457.3,1.5575]
[1727816603208,4.06862,2457.9,2457.3,1.5575]
[1727816603372,4.06898,2457.7,2457.1,4.06972]
[1727816603858,4.0692,2457.5,2457.0,1.5575]
[1727816604053,4.0689,2457.7,2457.1,0.08139179]
[1727816604054,19.53,2457.7,2457.1,0.08139179]
[1727816604254,19.53,2457.7,2457.3,4.06942]
[1727816604557,19.53,2457.7,2457.2,4.06965]
[1727816604959,19.53,2457.7,2457.0,5.62738]
[1727816605261,4.06912,2457.6,2457.1,4.06983]
[1727816605491,1.5037,2457.6,2456.6,5.57802]
[1727816605694,19.53,2457.8,2457.4,4.06933]
[1727816606018,19.53,2458.1,2457.5,4.06915]
[1727816606343,19.53,2458.1,2457.2,5.58322]
[1727816606344,19.53,2458.1,2458.0,4.06834]
[1727816606511,21.1115,2458.9,2458.3,4.06773]
[1727816606711,21.1115,2458.9,2457.8,5.58223]
[1727816606712,1.5815,2458.9,2458.5,4.06749]
[1727816607037,19.53,2459.2,2459.0,4.06668]
[1727816607201,25.17747,2459.5,2459.0,4.06668]
[1727816607405,25.17747,2459.5,2458.9,4.06685]
[1727816607735,29.24344,2459.5,2458.9,4.06685]
[1727816607888,29.24344,2459.5,2458.8,5.58051]
[1727816607889,21.1115,2459.5,2459.0,4.06658]
[1727816608636,21.1115,2459.5,2458.4,3.0]
[1727816608637,27.695171,2459.5,2458.7,4.0671]
[1727816608806,27.695171,2459.5,2458.5,1.5068]
[1727816608807,4.06624,2459.3,2458.5,1.5068]
[1727816609165,4.06624,2459.3,2458.6,4.06724]
[1727816609166,23.59645,2459.2,2458.6,4.06724]
[1727816609444,4.06673,2459.0,2458.5,4.06747]
[1727816610035,27.66296,2459.2,2458.6,4.06735]
[1727816610356,27.66296,2459.2,2458.4,4.06758]
[1727816610357,19.53,2459.1,2458.4,4.06758]
[1727816610522,4.06702,2458.8,2458.3,4.0678]
[1727816610724,4.06688,2458.9,2458.2,4.06791]
[1727816611039,23.5968,2459.0,2458.2,4.06791]
[1727816611040,4.06705,2458.8,2458.2,4.06791]
[1727816611206,4.06719,2458.7,2458.2,4.06791]
[1727816611405,4.06719,2458.7,2458.0,4.06823]
[1727816611406,19.53,2458.6,2458.0,4.06823]
[1727816611667,19.53,2458.6,2458.0,4.06824]
[1727816611823,19.53,2458.6,2458.0,8.13647]
[1727816611824,23.59735,2458.6,2458.0,8.13647]
[1727816612022,23.59735,2458.6,2458.1,4.06817]
[1727816612451,19.53,2458.6,2458.2,4.068]
[1727816612633,19.53,2458.6,2458.0,4.06819]
[1727816612836,19.53,2458.6,2458.5,4.06752]
[1727816613098,19.53,2458.6,2458.3,4.06782]
[1727816613967,19.53,2458.6,2458.0,4.06825]
[1727816614293,4.06752,2458.5,2458.0,4.06825]
[1727816614591,21.0758,2458.6,2458.0,4.06825]
[1727816614592,25.14318,2458.6,2458.0,4.06825]
[1727816614725,19.53,2458.6,2458.5,4.06752]
[1727816615373,4.06661,2459.1,2458.8,4.06696]
[1727816615374,19.53,2459.1,2458.8,4.06696]
[1727816615575,19.53,2459.3,2459.0,4.06667]
[1727816616065,4.06604,2459.4,2458.8,4.06693]
[1727816616220,4.06619,2459.3,2458.8,4.06693]
[1727816616573,4.06665,2459.1,2458.6,4.06725]
[1727816617075,4.06651,2459.2,2458.6,8.13449]
[1727816617374,4.06651,2459.2,2458.6,4.06724]
[1727816617375,4.06655,2459.1,2458.6,4.06724]
[1727816617561,4.06651,2459.2,2458.6,8.1345]
[1727816617797,4.06576,2459.6,2459.0,4.06661]
[1727816617798,4.06578,2459.6,2459.0,4.06661]
[1727816618081,42.108978,2460.0,2459.9,4.0652]
[1727816618581,42.108978,2460.0,2459.9,7.0652]
[1727816619683,42.108978,2460.0,2459.9,8.340464]
[1727816620190,42.108978,2460.0,2459.8,5.68744]
[1727816620344,42.108978,2460.0,2459.9,4.0652]
[1727816621252,42.108978,2460.0,2459.8,4.06526]
[1727816621453,42.108978,2460.0,2459.6,4.06562]
[1727816621746,42.108978,2460.0,2459.4,8.65222]
[1727816621747,46.174118,2460.0,2459.4,5.65218]
[1727816621939,4.06524,2459.9,2459.4,4.06588]
[1727816622254,4.06538,2459.8,2459.2,4.06621]
[1727816622461,11.58880663,2459.9,2459.0,1.5863]
[1727816622654,11.58880663,2459.9,2459.1,0.04988793]
[1727816622655,1.554,2459.8,2459.1,0.04988793]
[1727816622982,1.554,2459.8,2459.5,4.06576]
[1727816623347,1.554,2459.8,2459.4,4.066]
[1727816624197,1.554,2459.8,2459.2,4.06625]
[1727816624400,1.554,2459.8,2459.3,4.06607]
[1727816624691,1.554,2459.8,2459.2,4.06625]
[1727816624692,9.63407319,2459.8,2459.2,4.06625]
[1727816624991,5.56861319,2459.8,2459.3,4.06619]
[1727816625755,61.638978,2460.0,2459.3,4.06619]
[1727816625955,61.638978,2460.0,2459.7,4.06541]
[1727816626201,61.638978,2460.0,2459.5,4.06577]
[1727816626861,61.638978,2460.0,2457.9,4.66587651]
[1727816626862,3.12547258,2458.0,2457.9,4.66587651]
[1727816627059,4.06496,2460.1,2457.9,4.66587651]
[1727816627060,23.54461319,2459.9,2459.5,4.06577]
[1727816627305,23.59505,2460.0,2459.5,4.06577]
[1727816627597,4.0654,2459.8,2459.1,4.06651]
[1727816627800,1.6383,2459.7,2459.1,4.06651]
[1727816628311,1.6383,2459.7,2459.0,0.08131991]
[1727816628470,21.1683,2459.7,2459.0,4.06659]
[1727816628660,21.1683,2459.7,2459.1,4.06652]
[1727816628661,27.5866505,2459.7,2459.1,4.06652]
[1727816629059,21.1683,2459.7,2459.2,4.06632]
[1727816629578,21.1683,2459.7,2459.0,4.06657]
[1727816629759,21.1683,2459.7,2459.1,4.0665]
[1727816630093,21.1683,2459.7,2458.6,4.06731]
[1727816630094,23.5958,2459.6,2458.8,4.06694]
[1727816630295,26.525721,2459.6,2459.0,4.06661]
[1727816630467,26.525721,2459.6,2458.8,4.06693]
[1727816630668,6.8822921,2459.5,2458.8,8.13386]
[1727816631069,2.8164021,2459.5,2459.0,4.06668]
[1727816632301,19.53,2459.6,2459.3,4.06613]
[1727816632507,19.53,2460.0,2459.5,4.06584]
[1727816632662,25.23326,2460.1,2459.5,4.06584]
[1727816633397,28.163072,2460.1,2459.5,4.06584]
[1727816633590,24.098112,2460.1,2459.1,5.639]
[1727816633802,4.06514,2460.0,2459.1,1.5726]
[1727816634097,4.06513,2460.0,2459.3,4.06603]
[1727816634663,8.13031,2460.0,2459.3,4.06603]
[1727816634876,3.2228422,2459.9,2459.3,4.06603]
[1727816635078,3.2228422,2459.9,2459.1,5.63903]
[1727816635311,4.06546,2459.8,2459.2,4.14755877]
[1727816635604,4.06555,2459.7,2459.1,5.63903]
[1727816635905,4.06473,2460.2,2459.1,5.63903]
[1727816635906,23.59463,2460.3,2459.2,7.06631]
[1727816636076,27.6593,2460.3,2459.6,4.0656]
[1727816636279,23.59463,2460.3,2459.7,0.08130227]
[1727816636481,19.53,2460.3,2459.7,4.14675227]
[1727816636965,22.295877,2460.3,2459.5,4.06586]
[1727816637168,22.295877,2460.3,2459.1,6.4858885]
[1727816637169,4.0658,2459.6,2459.1,1.5726]
[1727816637477,4.0658,2459.6,2458.7,1.68654917]
[1727816637478,1.5765,2459.6,2458.7,1.5454]
[1727816637819,23.59539,2459.8,2458.1,2.16948991]
[1727816637820,4.06671,2459.0,2458.4,4.06764]
[1727816638108,4.06693,2458.9,2458.2,4.06801]
[1727816638412,5.64314,2459.1,2458.1,1.5454]
[1727816638566,12.227041,2459.1,2458.4,4.06757]
[1727816638764,4.06701,2458.9,2458.3,0.08134594]
[1727816638969,4.06701,2458.9,2458.3,0.08437558]
[1727816639203,4.06701,2458.9,2458.3,0.00302964]
[1727816639510,5.2897601,2458.9,2458.3,0.00302964]
[1727816639706,1.2227501,2458.9,2458.3,0.00302964]
[1727816640002,4.06721,2458.7,2458.3,0.00302964]
[1727816640211,4.06703,2458.8,2458.3,0.00302964]
[1727816640706,4.093771,2459.1,2458.6,4.06733]
[1727816641005,4.093771,2459.1,2458.3,0.00302964]
[1727816641310,4.06702,2458.8,2458.3,0.00302964]
[1727816641819,5.61958,2458.4,2458.3,0.00302964]
[1727816641979,4.5519,2458.4,2458.3,0.00302964]
[1727816642164,19.53,2458.6,2458.3,0.00302964]
[1727816642370,26.113881,2459.1,2458.3,0.00302964]
[1727816642564,23.59661,2459.1,2458.4,4.14891192]
[1727816642768,19.53,2459.1,2458.4,0.08134192]
[1727816643011,23.59662,2459.1,2458.5,4.06737]
[1727816643169,21.0819,2459.2,2458.7,4.06709]
[1727816643374,21.0819,2459.2,2458.5,4.88935516]
[1727816643574,21.0819,2459.2,2458.7,4.06715]
[1727816644208,21.1671,2459.6,2459.0,4.06658]
[1727816644367,19.53,2459.6,2459.1,0.08131995]
[1727816644571,4.06564,2459.7,2458.7,1.5792]
[1727816644803,4.06564,2459.7,2459.1,4.06651]
[1727816645213,8.13127,2459.7,2459.1,4.06651]
[1727816645372,4.06561,2459.7,2459.1,4.06651]
[1727816645574,23.5955,2459.8,2459.2,4.06635]
[1727816645905,23.5955,2459.8,2459.1,4.06638]
[1727816645906,29.77769,2459.8,2459.1,4.06638]
[1727816646118,25.71219,2459.8,2459.1,4.06638]
[1727816646284,4.06572,2459.6,2459.1,4.06638]
[1727816646482,4.06571,2459.6,2459.1,4.06638]
[1727816647079,4.06587,2459.5,2458.9,4.06674]
[1727816647283,8.13155,2459.6,2458.9,4.06674]
[1727816647486,3.0396479,2459.6,2458.7,1.5792]
[1727816647680,4.06646,2459.2,2458.5,4.06737]
[1727816647925,4.0667,2459.0,2458.5,4.06737]
[1727816648124,2.766316,2459.0,2458.3,0.00302964]
[1727816648328,2.766316,2459.0,2458.5,4.06743]
[1727816648621,19.53,2459.1,2458.7,4.06709]
[1727816648826,19.53,2459.1,2458.5,4.06741]
[1727816649132,4.06706,2458.8,2458.3,0.00302964]
[1727816649648,6.126186,2458.7,2458.3,0.00302964]
[1727816649933,2.058906,2458.7,2458.3,0.00302964]
[1727816650136,4.06748,2458.6,2458.3,0.00302964]
[1727816650336,4.06745,2458.6,2458.3,0.00302964]
[1727816650538,19.53,2458.6,2458.3,0.00302964]
[1727816651401,23.59738,2458.6,2458.3,0.00302964]
[1727816651701,19.53,2458.6,2458.3,0.00302964]
[1727816653309,19.53,2458.6,2458.3,4.07081964]
[1727816653704,19.53,2458.6,2458.3,0.00302964]
[1727816654341,19.53,2458.6,2458.3,0.00302954]
[1727816654658,3.0,2458.4,2458.3,0.00302954]
[1727816654859,8.59608,2458.4,2458.3,0.00302954]
[1727816655135,5.59564,2458.7,2458.3,0.00302954]
[1727816655355,23.59696,2458.9,2458.4,4.06767]
[1727816655356,19.53,2458.9,2458.4,4.06767]
[1727816655643,6.426796,2458.8,2458.4,0.00302954]
[1727816655811,4.06735,2458.6,2458.4,0.00302954]
[1727816656338,6.426766,2458.8,2458.4,0.00302954]
[1727816656339,2.359696,2458.8,2458.4,0.00302954]
[1727816656809,6.426716,2458.8,2458.4,0.00302954]
[1727816657437,0.82786392,2458.7,2458.4,0.00302954]
[1727816657628,8.13483,2458.6,2458.4,0.00302954]
[1727816658114,4.06736,2458.6,2458.4,0.00302954]
[1727816658304,4.06752,2458.5,2458.4,0.00302954]
[1727816658750,5.63922,2458.5,2458.4,0.00302954]
[1727816659043,9.69266439,2458.5,2458.4,0.00302954]
[1727816659800,21.173,2458.9,2458.4,0.00302954]
[1727816660002,19.53,2458.7,2458.6,4.06735]
[1727816660238,19.53,2459.1,2458.8,4.06693]
[1727816660552,4.06672,2459.0,2458.8,0.00302952]
[1727816660840,0.813333,2459.0,2458.8,0.00302952]
[1727816661143,4.06662,2459.1,2458.8,0.00302952]
[1727816662467,23.59631,2459.3,2458.8,0.00302952]
[1727816662673,23.59627,2459.3,2458.8,0.00302952]
[1727816662837,4.06662,2459.1,2458.8,0.00302952]
[1727816663356,23.59627,2459.3,2458.8,0.00302952]
[1727816663555,4.06647,2459.2,2458.8,0.00302952]
[1727816663761,23.59664,2459.1,2458.8,0.00302952]
[1727816663928,19.53,2459.1,2458.8,0.00302952]
[1727816665033,19.53,2459.1,2458.9,4.06683]
[1727816665369,19.53,2459.1,2458.9,0.00302952]
[1727816666277,19.53,2459.4,2459.1,4.06636]
[1727816666440,19.53,2459.8,2459.2,4.06624]
[1727816666624,19.53,2459.8,2459.2,4.63750549]
[1727816666825,19.53,2459.8,2459.2,0.57124549]
[1727816667028,19.53,2459.8,2459.7,1.6158]
[1727816667325,19.53,2460.4,2459.9,4.0651]
[1727816667563,19.53,2460.4,2459.9,8.13019]
[1727816667972,19.53,2460.4,2459.7,5.68124]
[1727816668128,19.53,2460.4,2460.0,4.06493]
[1727816668331,19.53,2460.4,2460.1,4.06482]
[1727816668528,19.53,2460.4,2460.0,4.06493]
[1727816670331,19.53,2460.4,2459.8,4.06525]
[1727816670740,23.59441,2460.4,2459.8,8.13053]
[1727816670932,23.59441,2460.4,2459.9,4.06517]
[1727816671132,19.53,2460.4,2459.9,4.06517]
[1727816671332,19.53,2460.4,2459.6,0.00302926]
[1727816671333,1.537,2460.3,2459.6,0.00302926]
[1727816671534,4.537,2460.3,2459.6,0.00302926]
[1727816671961,22.295875,2460.4,2459.9,8.13027]
[1727816672140,19.53,2460.3,2460.0,4.06502]
[1727816672670,19.53,2460.3,2460.1,4.06482]
[1727816672976,19.53,2460.3,2459.9,4.06511]
[1727816673450,23.59427,2460.5,2459.9,4.06519]
[1727816673637,2.521067,2460.4,2460.0,4.06502]
[1727816674035,2.521067,2460.4,2459.6,0.00302917]
[1727816674292,4.06464,2460.3,2459.7,4.06543]
[1727816674451,4.06464,2460.3,2459.7,4.06845916]
[1727816674642,1.0650217,2460.2,2459.7,4.06845916]
[1727816674848,1.0650217,2460.2,2459.7,4.06845915]
[1727816675356,1.0650217,2460.2,2459.7,4.06845914]
[1727816675742,1.0650217,2460.2,2459.8,4.06536]
[1727816675946,2.521067,2460.4,2460.0,4.06493]
[1727816676141,2.521067,2460.4,2460.2,4.06464]
[1727816676580,19.53,2460.5,2460.2,4.06464]
[1727816676784,19.53,2460.5,2460.4,4.06437]
[1727816676988,1.5496,2460.9,2460.3,8.12897]
[1727816677248,5.61315,2460.9,2460.3,4.06445]
[1727816677553,4.06372,2460.8,2460.3,4.06445]
[1727816677752,0.561332,2460.7,2460.2,4.06468]
[1727816678390,4.625302,2460.7,2460.1,4.06476]
[1727816678862,4.625302,2460.7,2460.1,8.12954]
[1727816679402,21.6296,2460.6,2459.8,0.00302896]
[1727816679555,4.06456,2460.3,2459.8,0.00302896]
[1727816679755,8.12922,2460.3,2459.8,0.00302896]
[1727816679954,4.06456,2460.3,2459.8,0.00302896]
[1727816680290,22.53,2460.5,2459.8,0.00302896]
[1727816680494,4.06457,2460.3,2459.8,4.06838896]
[1727816680705,4.06457,2460.3,2459.8,4.06838895]
[1727816680902,22.53,2460.5,2459.9,4.0651]
[1727816681198,22.53,2460.5,2459.8,0.00302895]
[1727816681199,19.53,2460.5,2460.0,4.06496]
[1727816681362,19.53,2460.5,2460.1,4.06479]
[1727816681801,19.53,2460.5,2460.2,4.06467]
[1727816682099,19.53,2460.5,2460.0,8.12987]
[1727816682393,19.53,2460.5,2460.0,8.12986]
[1727816682767,26.5711402,2460.5,2459.9,4.06820887]
[1727816683091,4.06472,2460.2,2459.9,0.00302886]
[1727816683298,22.5069102,2460.5,2459.9,0.00302885]
[1727816683991,26.5712002,2460.5,2459.9,0.00302885]
[1727816684199,4.06438,2460.4,2459.9,4.06811885]
[1727816684405,19.53,2460.3,2459.9,4.06811885]
[1727816684609,19.53,2460.3,2459.9,4.06811884]
[1727816685010,19.53,2460.3,2459.9,4.06811883]
[1727816685363,19.53,2460.3,2459.9,4.06811882]
[1727816686006,19.53,2460.3,2459.9,4.06811881]
[1727816686168,19.53,2460.3,2459.9,0.00302881]
[1727816686511,30.31635002,2460.3,2459.9,0.00302881]
[1727816686715,4.0648,2460.2,2459.9,0.00302881]
[1727816687526,22.18712002,2460.3,2459.9,0.00302881]
[1727816687681,26.25179002,2460.3,2459.9,0.00302881]
[1727816688005,4.06479,2460.2,2459.9,0.00302881]
[1727816688165,0.95539477,2460.2,2459.9,0.00302881]
[1727816688370,4.06489,2460.1,2459.9,0.00302881]
[1727816688591,19.53,2460.0,2459.9,0.00302881]
[1727816690301,19.53,2460.0,2459.9,4.06822881]
[1727816690620,4.06431,2460.5,2459.9,4.06822881]
[1727816690621,19.53,2460.5,2460.1,4.06473]
[1727816690782,19.53,2460.5,2460.2,4.06466]
[1727816690974,19.53,2460.5,2460.1,4.06473]
[1727816691476,19.53,2460.5,2460.2,4.0646]
[1727816691914,19.53,2460.5,2460.1,4.06473]
[1727816692117,22.1004902,2460.5,2460.0,0.00302874]
[1727816692285,26.1648302,2460.5,2460.0,4.06805874]
[1727816692486,26.1648302,2460.5,2460.0,4.06805873]
[1727816693026,23.59434,2460.5,2460.1,4.06485]
[1727816693414,19.53,2460.5,2460.4,4.06437]
[1727816693721,11.44331,2461.1,2460.5,4.06412]
[1727816693722,19.53,2460.8,2460.5,4.06412]
[1727816693894,7.38,2461.1,2460.5,4.06412]
[1727816693895,19.53,2461.6,2460.7,1.6061]
[1727816694103,19.53,2461.6,2461.3,8.12562]
[1727816694285,19.53,2461.6,2460.6,3.0]
[1727816694286,19.53,2461.8,2461.4,4.06262]
[1727816694489,4.06265,2461.5,2461.0,1.627]
[1727816694831,4.06265,2461.5,2461.0,5.69036]
[1727816695033,4.06274,2461.4,2460.9,4.06352]
[1727816695183,4.06291,2461.3,2460.8,4.06371]
[1727816695385,4.06323,2461.1,2460.5,4.06405]
[1727816695711,19.53,2461.0,2460.2,0.00302848]
[1727816695934,19.53,2461.0,2460.2,4.06760847]
[1727816695935,4.06382,2460.8,2460.2,4.06760847]
[1727816696093,23.59382,2460.8,2460.2,4.06760846]
[1727816696286,6.589592,2460.7,2460.2,0.00302845]
[1727816696486,4.06412,2460.6,2460.2,0.00302845]
[1727816696800,10.653632,2460.7,2460.2,0.00302845]
[1727816697185,19.53,2460.6,2460.2,0.00302845]
[1727816697587,23.59409,2460.6,2460.2,0.00302845]
[1727816697829,8.12856,2460.5,2460.2,0.00302845]
[1727816698187,4.06424,2460.5,2460.2,0.00302845]
[1727816698438,4.06439,2460.4,2460.2,0.00302845]
[1727816698587,4.06424,2460.5,2460.2,0.00302845]
[1727816698787,4.06446,2460.4,2460.2,0.00302845]
[1727816699026,8.12855,2460.5,2460.2,0.00302845]
[1727816699231,4.06424,2460.5,2460.2,0.00302845]
[1727816700288,5.35789699,2460.5,2460.2,0.00302845]
[1727816701787,4.06439,2460.4,2460.2,0.00302845]
[1727816701993,5.35789699,2460.5,2460.2,0.00302845]
[1727816702231,19.53,2460.4,2460.2,0.00302845]
[1727816702989,9.17504,2460.3,2460.2,0.00302845]
[1727816703216,32.16266411,2460.3,2460.2,0.00302845]
[1727816704014,31.61266411,2460.3,2460.2,0.00302845]
[1727816704262,19.53,2460.3,2460.2,0.00302845]
[1727816704570,1.5605,2460.7,2460.3,4.06439]
[1727816704718,19.53,2460.9,2460.3,5.6177]
[1727816704920,4.06372,2460.8,2460.3,5.62068841]
[1727816705119,19.53,2461.0,2460.4,0.08128536]
[1727816705321,19.53,2461.0,2460.9,4.06355]
[1727816705562,4.06281,2461.4,2460.9,5.62905]
[1727816705912,19.53,2461.5,2461.1,4.0632]
[1727816706117,19.53,2461.5,2460.9,1.5655]
[1727816706118,22.05229,2461.5,2460.9,1.5655]
[1727816706362,4.0628,2461.4,2460.9,5.62901]
[1727816706517,4.06298,2461.3,2460.9,1.5655]
[1727816706867,11.143397,2461.4,2460.8,4.06359]
[1727816707039,7.080557,2461.4,2460.7,4.06377]
[1727816707232,4.06308,2461.2,2460.7,8.12752]
[1727816707450,11.143427,2461.4,2460.8,4.06368]
[1727816707646,4.06306,2461.2,2460.7,4.06375]
[1727816708050,1.5765,2461.1,2460.4,0.00302818]
[1727816708361,4.57754412,2460.9,2460.4,0.00302818]
[1727816708562,6.19071,2460.5,2460.4,0.00302818]
[1727816708763,25.72071,2460.5,2460.4,0.00302818]
[1727816708917,31.699188,2460.5,2460.4,0.00302818]
[1727816712311,28.149188,2460.5,2460.4,0.00302818]
[1727816712457,28.699188,2460.5,2460.4,0.00302818]
[1727816713502,31.699188,2460.5,2460.4,0.00302818]
[1727816714175,4.06529,2459.9,2459.5,1.5437]
[1727816714509,19.52697182,2459.8,2459.5,1.5437]
[1727816715309,19.52697182,2459.8,2459.5,5.60953]
[1727816716082,19.52697182,2459.8,2459.6,4.06568]
[1727816716283,19.52697182,2459.8,2459.7,4.06553]
[1727816716821,19.52697182,2459.8,2459.5,5.60943]
[1727816716972,19.52697182,2459.8,2459.5,9.67521]
[1727816717177,19.52697182,2459.8,2459.5,5.60943]
[1727816717802,19.52697182,2459.8,2459.5,1.5437]
[1727816717973,19.52697182,2459.8,2459.5,5.60955]
[1727816718169,19.52697182,2459.8,2459.5,1.5437]
[1727816718471,19.52697182,2459.8,2459.5,5.60949]
[1727816718670,23.59249182,2459.8,2459.5,1.5437]
[1727816718869,21.40945994,2459.8,2459.5,5.60954]
[1727816719107,19.52697182,2459.8,2459.5,5.60948]
[1727816719519,19.52697182,2459.8,2459.6,4.06566]
[1727816719815,19.52697182,2459.8,2458.9,5.66681]
[1727816719816,4.0658,2459.6,2458.9,5.66681]
[1727816720107,4.06597,2459.5,2458.9,1.6001]
[1727816720273,7.01350794,2459.5,2459.0,4.06665]
[1727816720471,11.07952794,2459.5,2459.0,4.06665]
[1727816720795,4.06613,2459.4,2458.9,1.6001]
[1727816720969,4.06613,2459.4,2458.9,5.66695]
[1727816721367,4.06613,2459.4,2458.9,1.6001]
[1727816721568,4.06644,2459.2,2458.9,1.6001]
[1727816721785,4.0673,2458.7,2458.1,5.66818]
[1727816721993,4.0673,2458.7,2458.1,1.6001]
[1727816721994,4.06754,2458.5,2458.1,1.6001]
[1727816722633,4.06771,2458.4,2458.1,1.6001]
[1727816722773,4.06801,2458.2,2457.8,1.6042]
[1727816722973,4.06721,2458.7,2458.0,4.06833]
[1727816722974,3.0,2458.7,2458.0,4.06833]
[1727816723213,1.656,2458.8,2458.0,4.635583]
[1727816723512,4.06751,2458.6,2458.0,4.06833]
[1727816723996,4.06755,2458.5,2457.8,5.67279]
[1727816724198,0.979071,2458.6,2458.1,4.06815]
[1727816724517,5.046441,2458.6,2458.0,4.06824]
[1727816724689,8.13487,2458.6,2458.0,4.06824]
[1727816724891,8.13487,2458.6,2457.9,4.14983916]
[1727816724892,4.06737,2458.6,2458.1,4.06816]
[1727816725300,8.13481,2458.6,2458.1,4.06816]